[Event "*** Titled Tuesday 3|2 Blitz"]
[Site "Chess.com"]
[Date "2016.05.03"]
[Round "4"]
[White "kikydu96"]
[Black "PowerThinking2650"]
[Result "0-1"]
[WhiteElo "2286"]
[BlackElo "2173"]
[TimeControl "180+2"]
[EndTime "11:50:37 PDT"]
[Termination "PowerThinking2650 won by resignation"]

1. e4 {[%clk 0:02:32.3]} 1... e5 {[%clk 0:02:59.7]} 2. Nf3 {[%clk 0:02:32.9]}
2... Nc6 {[%clk 0:03:00.4]} 3. Nc3 {[%clk 0:02:23.8]} 3... Nf6 {[%clk
0:02:59.4]} 4. d4 {[%clk 0:02:24.9]} 4... exd4 {[%clk 0:03:00.6]} 5. Nxd4 {[%clk
0:02:26.8]} 5... Bb4 {[%clk 0:03:01.7]} 6. Nxc6 {[%clk 0:02:27.6]} 6... bxc6
{[%clk 0:03:03.3]} 7. Bd3 {[%clk 0:02:28.8]} 7... O-O {[%clk 0:03:04.4]} 8. O-O
{[%clk 0:02:28.8]} 8... d5 {[%clk 0:03:05.9]} 9. exd5 {[%clk 0:02:30.1]} 9...
cxd5 {[%clk 0:03:07.4]} 10. h3 {[%clk 0:02:31.5]} 10... Bxc3 {[%clk 0:03:05.3]}
11. bxc3 {[%clk 0:02:31.9]} 11... c5 {[%clk 0:03:06.4]} 12. c4 {[%clk
0:02:29.4]} 12... Ba6 {[%clk 0:02:19.7]} 13. Ba3 {[%clk 0:01:38.4]} 13... dxc4
{[%clk 0:02:08.9]} 14. Bf5 {[%clk 0:01:35.7]} 14... Qa5 {[%clk 0:02:09.1]} 15.
Bc1 {[%clk 0:01:23.9]} 15... Rad8 {[%clk 0:01:40.8]} 16. Qf3 {[%clk 0:01:24.3]}
16... c3 {[%clk 0:01:31.7]} 17. Re1 {[%clk 0:01:21.2]} 17... Nd5 {[%clk
0:01:19.5]} 18. Bg5 {[%clk 0:01:15]} 18... f6 {[%clk 0:00:49.8]} 19. Qh5 {[%clk
0:01:14.8]} 19... g6 {[%clk 0:00:31.3]} 20. Bxg6 {[%clk 0:01:06.5]} 20... Qc7
{[%clk 0:00:25.7]} 21. Be4 {[%clk 0:00:33.9]} 21... fxg5 {[%clk 0:00:23.6]} 22.
Qxg5+ {[%clk 0:00:34.7]} 22... Qg7 {[%clk 0:00:18.4]} 23. Bxd5+ {[%clk
0:00:35.7]} 23... Kh8 {[%clk 0:00:19.4]} 24. Qxg7+ {[%clk 0:00:34.4]} 24... Kxg7
{[%clk 0:00:20.1]} 25. Re7+ {[%clk 0:00:36.1]} 25... Kf6 {[%clk 0:00:17.8]} 26.
Re6+ {[%clk 0:00:34.2]} 26... Kf5 {[%clk 0:00:16.4]} 27. g4+ {[%clk 0:00:30.7]}
27... Kg5 {[%clk 0:00:15.1]} 28. Rxa6 {[%clk 0:00:26.5]} 28... Rxd5 {[%clk
0:00:15.5]} 29. Rxa7 {[%clk 0:00:28]} 29... h5 {[%clk 0:00:16.5]} 30. a4 {[%clk
0:00:18.8]} 30... Rd2 {[%clk 0:00:17.2]} 31. Rc7 {[%clk 0:00:18.3]} 31... Rfxf2
{[%clk 0:00:15.9]} 32. Rxc5+ {[%clk 0:00:19.3]} 32... Kh4 {[%clk 0:00:16.9]} 33.
Rxc3 {[%clk 0:00:16.9]} 33... Rg2+ {[%clk 0:00:15.3]} 34. Kf1 {[%clk 0:00:17.8]}
34... Rgf2+ {[%clk 0:00:16.6]} 35. Kg1 {[%clk 0:00:18.2]} 35... Rg2+ {[%clk
0:00:17.4]} 36. Kf1 {[%clk 0:00:19.3]} 36... Rdf2+ {[%clk 0:00:17.5]} 37. Ke1
{[%clk 0:00:19.6]} 37... Rd2 {[%clk 0:00:18.2]} 38. Re3 {[%clk 0:00:09.9]} 38...
Rxc2 {[%clk 0:00:18.7]} 39. Kf1 {[%clk 0:00:10.9]} 39... Rh2 {[%clk 0:00:18.7]}
40. Kg1 {[%clk 0:00:11.6]} 40... Rcg2+ {[%clk 0:00:18.8]} 41. Kf1 {[%clk
0:00:13.2]} 41... Rf2+ {[%clk 0:00:19.9]} 42. Ke1 {[%clk 0:00:13.8]} 42... Rb2
{[%clk 0:00:20.5]} 43. Kd1 {[%clk 0:00:14.6]} 43... Rh1+ {[%clk 0:00:20.7]} 44.
Re1 {[%clk 0:00:15.6]} 44... Rhh2 {[%clk 0:00:20.1]} 45. Re3 {[%clk 0:00:13.3]}
45... Rbd2+ {[%clk 0:00:20]} 46. Ke1 {[%clk 0:00:13.9]} 46... Rdg2 {[%clk
0:00:19]} 47. Kd1 {[%clk 0:00:14.2]} 47... Rg1+ {[%clk 0:00:18.9]} 48. Re1
{[%clk 0:00:14.8]} 48... Rxe1+ {[%clk 0:00:19]} 49. Kxe1 {[%clk 0:00:14.6]}
49... Rh1+ {[%clk 0:00:20.1]} 0-1

[Event "*** Titled Tuesday 3|2 Blitz"]
[Site "Chess.com"]
[Date "2016.05.03"]
[Round "4"]
[White "Kacparov"]
[Black "NaziPaiki"]
[Result "0-1"]
[WhiteElo "2588"]
[BlackElo "2662"]
[TimeControl "180+2"]
[EndTime "11:50:45 PDT"]
[Termination "NaziPaiki won by resignation"]

1. e4 {[%clk 0:03:01.9]} 1... c5 {[%clk 0:03:00.7]} 2. Nf3 {[%clk 0:03:02.6]}
2... d6 {[%clk 0:03:00.8]} 3. d4 {[%clk 0:03:03.6]} 3... cxd4 {[%clk 0:03:02.2]}
4. Nxd4 {[%clk 0:03:05.2]} 4... Nf6 {[%clk 0:03:02.7]} 5. Nc3 {[%clk 0:03:06.2]}
5... a6 {[%clk 0:03:04.1]} 6. h3 {[%clk 0:03:07]} 6... e6 {[%clk 0:03:00.8]} 7.
g4 {[%clk 0:03:07.6]} 7... d5 {[%clk 0:03:01.7]} 8. exd5 {[%clk 0:03:08]} 8...
Nxd5 {[%clk 0:03:00.2]} 9. Nde2 {[%clk 0:03:05.6]} 9... Nc6 {[%clk 0:03:00.3]}
10. Bg2 {[%clk 0:03:06.5]} 10... Bb4 {[%clk 0:02:55.9]} 11. Bd2 {[%clk
0:03:03.8]} 11... Nxc3 {[%clk 0:02:54.6]} 12. Nxc3 {[%clk 0:03:04.5]} 12... O-O
{[%clk 0:02:53.5]} 13. O-O {[%clk 0:03:04.6]} 13... Bd7 {[%clk 0:02:51.7]} 14.
a3 {[%clk 0:03:03.8]} 14... Bc5 {[%clk 0:02:50.7]} 15. Ne4 {[%clk 0:03:04.5]}
15... Ba7 {[%clk 0:02:46.5]} 16. Bf4 {[%clk 0:03:02.3]} 16... e5 {[%clk
0:02:46]} 17. Bg3 {[%clk 0:02:59.8]} 17... Rc8 {[%clk 0:02:42.7]} 18. c3 {[%clk
0:02:59.5]} 18... Qe7 {[%clk 0:02:43.2]} 19. Qe2 {[%clk 0:02:44.6]} 19... Be6
{[%clk 0:02:39.2]} 20. Rfd1 {[%clk 0:02:41.2]} 20... Rfd8 {[%clk 0:02:40.3]} 21.
Rxd8+ {[%clk 0:02:34.2]} 21... Rxd8 {[%clk 0:02:41.2]} 22. Rd1 {[%clk
0:02:35.2]} 22... f6 {[%clk 0:02:40.6]} 23. b4 {[%clk 0:02:22.3]} 23... Rd7
{[%clk 0:02:37.6]} 24. Rxd7 {[%clk 0:02:13.5]} 24... Qxd7 {[%clk 0:02:38.8]} 25.
Qd2 {[%clk 0:02:14.4]} 25... Qxd2 {[%clk 0:02:36]} 26. Nxd2 {[%clk 0:02:16.3]}
26... Kf7 {[%clk 0:02:37.4]} 27. Kf1 {[%clk 0:02:17]} 27... Nd8 {[%clk 0:02:36]}
28. Ke2 {[%clk 0:02:15.8]} 28... b5 {[%clk 0:02:34.8]} 29. f4 {[%clk 0:02:14.8]}
29... exf4 {[%clk 0:02:33.6]} 30. Bxf4 {[%clk 0:02:16.7]} 30... Ke7 {[%clk
0:02:35.2]} 31. Be4 {[%clk 0:02:10.3]} 31... h6 {[%clk 0:02:36.3]} 32. Nf3
{[%clk 0:02:08.2]} 32... Bc4+ {[%clk 0:02:31.6]} 33. Kd2 {[%clk 0:02:08.9]}
33... Kd7 {[%clk 0:02:32.9]} 34. Be3 {[%clk 0:02:03.3]} 34... Bb8 {[%clk
0:02:33.3]} 35. Nd4 {[%clk 0:02:02.5]} 35... Bc7 {[%clk 0:02:31.8]} 36. Nf5
{[%clk 0:02:02.7]} 36... Ne6 {[%clk 0:02:28.2]} 37. h4 {[%clk 0:01:55.3]} 37...
a5 {[%clk 0:02:28.4]} 38. h5 {[%clk 0:01:55.5]} 38... a4 {[%clk 0:02:26.6]} 39.
Bd3 {[%clk 0:01:44.8]} 39... Be5 {[%clk 0:02:24.9]} 40. Bxc4 {[%clk 0:01:18.9]}
40... bxc4 {[%clk 0:02:25.7]} 41. Kc2 {[%clk 0:01:20.8]} 41... Kc6 {[%clk
0:02:23.4]} 42. Bc5 {[%clk 0:01:15.9]} 42... Nxc5 {[%clk 0:02:20.9]} 43. bxc5
{[%clk 0:01:17.8]} 43... Kxc5 {[%clk 0:02:21.4]} 44. Nxg7 {[%clk 0:01:17.4]}
44... Kd5 {[%clk 0:02:21]} 45. Nf5 {[%clk 0:01:16]} 45... Bf4 {[%clk 0:02:20.1]}
46. Ne7+ {[%clk 0:01:10.6]} 46... Ke4 {[%clk 0:02:21.2]} 47. Nc6 {[%clk
0:01:01.2]} 47... Kf3 {[%clk 0:02:21.3]} 48. Na5 {[%clk 0:01:02.3]} 48... Kxg4
{[%clk 0:02:20.4]} 49. Nxc4 {[%clk 0:01:03.9]} 49... Kxh5 {[%clk 0:02:21.8]} 50.
Kd3 {[%clk 0:01:04.3]} 50... Kg4 {[%clk 0:02:20.6]} 51. Ke2 {[%clk 0:01:03.5]}
51... Kg3 {[%clk 0:02:20.3]} 52. Kf1 {[%clk 0:01:02.3]} 52... h5 {[%clk
0:02:19.7]} 53. Kg1 {[%clk 0:01:00.8]} 53... h4 {[%clk 0:02:18.4]} 54. Nb2
{[%clk 0:01:00.5]} 54... Be3+ {[%clk 0:02:16.2]} 55. Kh1 {[%clk 0:01:01]} 55...
f5 {[%clk 0:02:17.7]} 56. Nxa4 {[%clk 0:01:02]} 56... f4 {[%clk 0:02:16.6]} 57.
Nb2 {[%clk 0:01:03.1]} 57... f3 {[%clk 0:02:17.8]} 58. Nd3 {[%clk 0:01:04.1]}
58... Bf4 {[%clk 0:02:14.3]} 59. a4 {[%clk 0:01:04.3]} 59... Bc7 {[%clk
0:02:13.8]} 60. c4 {[%clk 0:01:05.2]} 60... h3 {[%clk 0:02:12.5]} 61. c5 {[%clk
0:01:05.6]} 61... Ba5 {[%clk 0:02:13.3]} 62. c6 {[%clk 0:01:06.7]} 62... Bb6
{[%clk 0:02:14.7]} 63. a5 {[%clk 0:00:39.7]} 63... Bxa5 {[%clk 0:02:15.2]} 64.
Nc5 {[%clk 0:00:40.2]} 64... Bc7 {[%clk 0:02:08.3]} 65. Ne4+ {[%clk 0:00:40.6]}
65... Kg4 {[%clk 0:02:03.8]} 66. Nf2+ {[%clk 0:00:41.2]} 66... Kh4 {[%clk
0:02:04.8]} 67. Ne4 {[%clk 0:00:40.5]} 67... Bd8 {[%clk 0:02:02.3]} 68. Kg1
{[%clk 0:00:39.1]} 68... Ba5 {[%clk 0:02:00.3]} 69. Kf2 {[%clk 0:00:22.1]} 69...
h2 {[%clk 0:01:58.1]} 70. Ng3 {[%clk 0:00:22.6]} 70... Kg4 {[%clk 0:01:58.3]}
71. Nh1 {[%clk 0:00:21.5]} 71... Bb6+ {[%clk 0:01:58]} 72. Kf1 {[%clk
0:00:22.7]} 72... Kh3 {[%clk 0:01:53.8]} 73. c7 {[%clk 0:00:15]} 73... Bxc7
{[%clk 0:01:55]} 74. Nf2+ {[%clk 0:00:15.4]} 74... Kh4 {[%clk 0:01:55.3]} 75.
Nh1 {[%clk 0:00:16.7]} 75... Bb6 {[%clk 0:01:56.3]} 76. Ke1 {[%clk 0:00:17.9]}
76... Kh3 {[%clk 0:01:55.6]} 77. Kf1 {[%clk 0:00:19.3]} 77... Bc5 {[%clk
0:01:57]} 0-1

[Event "*** Titled Tuesday 3|2 Blitz"]
[Site "Chess.com"]
[Date "2016.05.03"]
[Round "4"]
[White "Journey_to_GrandMaster_YT"]
[Black "BartoszSocko"]
[Result "0-1"]
[WhiteElo "2330"]
[BlackElo "2662"]
[TimeControl "180+2"]
[EndTime "11:50:50 PDT"]
[Termination "BartoszSocko won by resignation"]

1. d4 {[%clk 0:03:01.9]} 1... Nf6 {[%clk 0:03:00.4]} 2. Nf3 {[%clk 0:03:02.4]}
2... b5 {[%clk 0:02:59.4]} 3. e3 {[%clk 0:02:45.7]} 3... a6 {[%clk 0:03:00.4]}
4. c4 {[%clk 0:02:44]} 4... bxc4 {[%clk 0:03:00.6]} 5. Bxc4 {[%clk 0:02:44.5]}
5... e6 {[%clk 0:03:02.5]} 6. O-O {[%clk 0:02:44.9]} 6... Bb7 {[%clk 0:03:03.7]}
7. Nc3 {[%clk 0:02:45.3]} 7... Be7 {[%clk 0:03:03.6]} 8. Qe2 {[%clk 0:02:44.5]}
8... O-O {[%clk 0:02:59.2]} 9. e4 {[%clk 0:02:45.4]} 9... d5 {[%clk 0:02:59.8]}
10. exd5 {[%clk 0:02:35.2]} 10... exd5 {[%clk 0:03:01]} 11. Bd3 {[%clk
0:02:35.7]} 11... Re8 {[%clk 0:03:02.6]} 12. Bg5 {[%clk 0:02:34.4]} 12... Ne4
{[%clk 0:02:56.4]} 13. Bf4 {[%clk 0:02:18.2]} 13... Nd7 {[%clk 0:02:51]} 14. Ne5
{[%clk 0:02:17]} 14... Nxe5 {[%clk 0:02:48.2]} 15. Bxe5 {[%clk 0:02:10.7]} 15...
Bf6 {[%clk 0:02:45.8]} 16. Nxe4 {[%clk 0:02:00]} 16... Bxe5 {[%clk 0:02:41.7]}
17. dxe5 {[%clk 0:02:00.5]} 17... Rxe5 {[%clk 0:02:34.4]} 18. f3 {[%clk
0:01:40.6]} 18... dxe4 {[%clk 0:02:33.6]} 19. fxe4 {[%clk 0:01:38.1]} 19... Qd4+
{[%clk 0:02:29.1]} 20. Kh1 {[%clk 0:01:38.4]} 20... Bxe4 {[%clk 0:02:25.3]} 21.
Bxe4 {[%clk 0:01:38.7]} 21... Rxe4 {[%clk 0:02:18.4]} 22. Qf2 {[%clk 0:01:38.3]}
22... Rf8 {[%clk 0:02:19]} 23. Qxd4 {[%clk 0:01:34.1]} 23... Rxd4 {[%clk
0:02:20.9]} 24. Rac1 {[%clk 0:01:35.1]} 24... Rd2 {[%clk 0:02:18.8]} 25. b4
{[%clk 0:01:12.9]} 25... Rc8 {[%clk 0:02:12.4]} 26. a3 {[%clk 0:01:12.6]} 26...
Rd3 {[%clk 0:02:11.3]} 27. Rf3 {[%clk 0:01:11.2]} 27... Rcd8 {[%clk 0:01:58.9]}
28. Rxd3 {[%clk 0:00:51.1]} 28... Rxd3 {[%clk 0:02:00.8]} 29. Kg1 {[%clk
0:00:51.9]} 29... Rxa3 {[%clk 0:01:59.7]} 30. Rxc7 {[%clk 0:00:52.6]} 30... g5
{[%clk 0:01:55.4]} 31. Ra7 {[%clk 0:00:50.9]} 31... Ra4 {[%clk 0:01:55.7]} 32.
Kf2 {[%clk 0:00:50.1]} 32... Kg7 {[%clk 0:01:57]} 33. Kf3 {[%clk 0:00:49.8]}
33... Kg6 {[%clk 0:01:58]} 34. g4 {[%clk 0:00:50.3]} 34... f6 {[%clk 0:01:52.7]}
35. Rb7 {[%clk 0:00:43.9]} 35... Ra3+ {[%clk 0:01:51.5]} 36. Kg2 {[%clk
0:00:44.6]} 36... h5 {[%clk 0:01:42.3]} 37. h3 {[%clk 0:00:45.4]} 37... h4
{[%clk 0:01:42.4]} 38. Rb6 {[%clk 0:00:46]} 38... Rg3+ {[%clk 0:01:41]} 39. Kh2
{[%clk 0:00:46.8]} 39... Ra3 {[%clk 0:01:41.9]} 40. Kg2 {[%clk 0:00:47.6]} 40...
Kf7 {[%clk 0:01:43.2]} 41. Kh2 {[%clk 0:00:47.9]} 41... Ke7 {[%clk 0:01:44]} 42.
Kg2 {[%clk 0:00:49]} 42... Kf7 {[%clk 0:01:39]} 43. Kh2 {[%clk 0:00:50]} 43...
Ra2+ {[%clk 0:01:40.4]} 44. Kg1 {[%clk 0:00:50.6]} 44... Ke7 {[%clk 0:01:41.5]}
45. Kh1 {[%clk 0:00:50.2]} 45... a5 {[%clk 0:01:35.5]} 46. bxa5 {[%clk
0:00:39.3]} 46... Rxa5 {[%clk 0:01:37.4]} 47. Kg2 {[%clk 0:00:40.5]} 47... Ra2+
{[%clk 0:01:38.1]} 48. Kg1 {[%clk 0:00:41]} 48... Rc2 {[%clk 0:01:38.3]} 49. Ra6
{[%clk 0:00:40.9]} 49... Re2 {[%clk 0:01:38.3]} 50. Rb6 {[%clk 0:00:41.4]} 50...
Rd2 {[%clk 0:01:39.5]} 51. Ra6 {[%clk 0:00:42.6]} 51... Rd6 {[%clk 0:01:40.7]}
52. Ra5 {[%clk 0:00:43.1]} 52... Ke6 {[%clk 0:01:41.8]} 53. Kg2 {[%clk
0:00:43.6]} 53... Rd2+ {[%clk 0:01:42.7]} 54. Kg1 {[%clk 0:00:44.7]} 54... Rd5
{[%clk 0:01:43.8]} 55. Ra4 {[%clk 0:00:44.1]} 55... Ke5 {[%clk 0:01:45.3]} 56.
Ra6 {[%clk 0:00:43.9]} 56... Kf4 {[%clk 0:01:38]} 57. Ra4+ {[%clk 0:00:44.3]}
57... Ke3 {[%clk 0:01:32.2]} 58. Ra3+ {[%clk 0:00:43.8]} 58... Rd3 {[%clk
0:01:33.3]} 59. Ra6 {[%clk 0:00:39.6]} 59... Kf3 {[%clk 0:01:27.3]} 60. Kh2
{[%clk 0:00:31.6]} 60... Rd2+ {[%clk 0:01:27.8]} 61. Kg1 {[%clk 0:00:32.9]}
61... Re2 {[%clk 0:01:26.6]} 62. Kf1 {[%clk 0:00:31.3]} 62... Rf2+ {[%clk
0:01:22]} 63. Kg1 {[%clk 0:00:32]} 63... Kg3 {[%clk 0:01:21.6]} 64. Rb6 {[%clk
0:00:26.2]} 64... Rf3 {[%clk 0:01:20.7]} 65. Rb2 {[%clk 0:00:15.7]} 65... Kxh3
{[%clk 0:01:20.9]} 66. Rg2 {[%clk 0:00:16.7]} 66... Rg3 {[%clk 0:01:21]} 0-1

[Event "*** Titled Tuesday 3|2 Blitz"]
[Site "Chess.com"]
[Date "2016.05.03"]
[Round "4"]
[White "Ginger_GM"]
[Black "Boryboy"]
[Result "1/2-1/2"]
[WhiteElo "2550"]
[BlackElo "2504"]
[TimeControl "180+2"]
[EndTime "11:50:51 PDT"]
[Termination "Game drawn - insufficient material"]

1. d4 {[%clk 0:03:01.9]} 1... e6 {[%clk 0:02:58.6]} 2. Nf3 {[%clk 0:02:59]} 2...
Nf6 {[%clk 0:02:58.7]} 3. c4 {[%clk 0:02:58.5]} 3... d5 {[%clk 0:02:56.1]} 4.
Nc3 {[%clk 0:02:58.9]} 4... Nbd7 {[%clk 0:02:57.1]} 5. Bf4 {[%clk 0:02:59]} 5...
dxc4 {[%clk 0:02:55.4]} 6. e3 {[%clk 0:02:59.3]} 6... b5 {[%clk 0:02:56.2]} 7.
Nxb5 {[%clk 0:02:39.4]} 7... Nd5 {[%clk 0:02:57.1]} 8. Bxc4 {[%clk 0:02:31.7]}
8... Bb4+ {[%clk 0:02:54.5]} 9. Kf1 {[%clk 0:02:23.7]} 9... Nxf4 {[%clk
0:02:55.8]} 10. exf4 {[%clk 0:02:24.6]} 10... O-O {[%clk 0:02:51]} 11. a3 {[%clk
0:02:22.6]} 11... Be7 {[%clk 0:02:48]} 12. Nc3 {[%clk 0:02:18.5]} 12... Bb7
{[%clk 0:02:47]} 13. Qd3 {[%clk 0:02:11.1]} 13... c5 {[%clk 0:02:20.9]} 14. d5
{[%clk 0:01:55.5]} 14... exd5 {[%clk 0:02:12.7]} 15. Nxd5 {[%clk 0:01:53.1]}
15... Nb6 {[%clk 0:02:10.7]} 16. Nxb6 {[%clk 0:01:40.6]} 16... Qxd3+ {[%clk
0:02:09]} 17. Bxd3 {[%clk 0:01:40.9]} 17... axb6 {[%clk 0:02:10.9]} 18. Ne5
{[%clk 0:01:37.4]} 18... Rfd8 {[%clk 0:02:11.5]} 19. Bc4 {[%clk 0:01:28.2]}
19... Rd2 {[%clk 0:01:50.6]} 20. Bxf7+ {[%clk 0:01:26.3]} 20... Kf8 {[%clk
0:01:50.5]} 21. Bh5 {[%clk 0:01:06.4]} 21... Rxb2 {[%clk 0:01:46]} 22. Bf3
{[%clk 0:01:05.3]} 22... Bxf3 {[%clk 0:01:43.4]} 23. gxf3 {[%clk 0:01:06.5]}
23... b5 {[%clk 0:01:41.9]} 24. Kg2 {[%clk 0:01:06]} 24... c4 {[%clk 0:01:43.5]}
25. a4 {[%clk 0:00:53.4]} 25... Rxa4 {[%clk 0:01:44]} 26. Rxa4 {[%clk
0:00:52.6]} 26... bxa4 {[%clk 0:01:44.5]} 27. Nxc4 {[%clk 0:00:53.9]} 27... Rc2
{[%clk 0:01:38.5]} 28. Ne3 {[%clk 0:00:54]} 28... Rd2 {[%clk 0:01:30.8]} 29. Rc1
{[%clk 0:00:51.9]} 29... a3 {[%clk 0:01:24.4]} 30. Rc8+ {[%clk 0:00:52.4]} 30...
Kf7 {[%clk 0:01:24.3]} 31. Ra8 {[%clk 0:00:52.3]} 31... a2 {[%clk 0:01:15.3]}
32. Nc4 {[%clk 0:00:52.6]} 32... Rc2 {[%clk 0:01:11.9]} 33. Ne5+ {[%clk
0:00:47.9]} 33... Ke6 {[%clk 0:01:09.3]} 34. Ra6+ {[%clk 0:00:21.4]} 34... Kd5
{[%clk 0:01:05.4]} 35. Ra5+ {[%clk 0:00:21.4]} 35... Ke6 {[%clk 0:00:49.9]} 36.
Ra6+ {[%clk 0:00:21.8]} 36... Kf5 {[%clk 0:00:51.3]} 37. Kg3 {[%clk 0:00:20.1]}
37... h5 {[%clk 0:00:49.9]} 38. h4 {[%clk 0:00:20.2]} 38... Bc5 {[%clk
0:00:44.7]} 39. Nd3 {[%clk 0:00:15.2]} 39... Bd4 {[%clk 0:00:41.3]} 40. Nb4
{[%clk 0:00:16.3]} 40... Bxf2+ {[%clk 0:00:40.4]} 41. Kg2 {[%clk 0:00:17.5]}
41... Rd2 {[%clk 0:00:39.2]} 42. Rxa2 {[%clk 0:00:18.4]} 42... Rxa2 {[%clk
0:00:35]} 43. Nxa2 {[%clk 0:00:19.7]} 43... Bxh4 {[%clk 0:00:36.5]} 44. Nc3
{[%clk 0:00:21.1]} 44... Kxf4 {[%clk 0:00:37.1]} 45. Nd5+ {[%clk 0:00:22.6]}
45... Kf5 {[%clk 0:00:38]} 46. Ne3+ {[%clk 0:00:23.7]} 46... Ke5 {[%clk
0:00:36.4]} 47. Kh3 {[%clk 0:00:25]} 47... Bd8 {[%clk 0:00:36.1]} 48. Ng2 {[%clk
0:00:26.2]} 48... Bg5 {[%clk 0:00:28.5]} 49. Kg3 {[%clk 0:00:26.6]} 49... Bd2
{[%clk 0:00:28.4]} 50. Kh4 {[%clk 0:00:27.5]} 50... g6 {[%clk 0:00:28.9]} 51.
Kg3 {[%clk 0:00:29]} 51... g5 {[%clk 0:00:25.2]} 52. Kh3 {[%clk 0:00:27]} 52...
h4 {[%clk 0:00:24.5]} 53. Kg4 {[%clk 0:00:27.6]} 53... Bf4 {[%clk 0:00:12.6]}
54. Nxh4 {[%clk 0:00:27.6]} 54... gxh4 {[%clk 0:00:14.1]} 55. Kxh4 {[%clk
0:00:27.6]} 55... Be3 {[%clk 0:00:14.7]} 56. f4+ {[%clk 0:00:27.4]} 56... Bxf4
{[%clk 0:00:16.1]} 1/2-1/2

[Event "*** Titled Tuesday 3|2 Blitz"]
[Site "Chess.com"]
[Date "2016.05.03"]
[Round "4"]
[White "bugsbunny444"]
[Black "Philofive"]
[Result "1-0"]
[WhiteElo "2380"]
[BlackElo "2358"]
[TimeControl "180+2"]
[EndTime "11:51:21 PDT"]
[Termination "bugsbunny444 won by resignation"]

1. Nf3 {[%clk 0:03:01.9]} 1... Nf6 {[%clk 0:02:57.7]} 2. c4 {[%clk 0:03:03]}
2... g6 {[%clk 0:02:58.7]} 3. b4 {[%clk 0:03:03.9]} 3... Bg7 {[%clk 0:02:58.1]}
4. Bb2 {[%clk 0:03:05.3]} 4... O-O {[%clk 0:02:59.2]} 5. g3 {[%clk 0:03:06.7]}
5... d6 {[%clk 0:02:59.4]} 6. Bg2 {[%clk 0:03:07.6]} 6... e5 {[%clk 0:03:00.9]}
7. O-O {[%clk 0:03:08.8]} 7... h6 {[%clk 0:02:52.2]} 8. d3 {[%clk 0:03:09.1]}
8... Be6 {[%clk 0:02:51.5]} 9. Nbd2 {[%clk 0:03:05.2]} 9... Qd7 {[%clk
0:02:48.2]} 10. Re1 {[%clk 0:03:01.6]} 10... Nc6 {[%clk 0:02:42.8]} 11. b5
{[%clk 0:03:02.3]} 11... Nd8 {[%clk 0:02:43.7]} 12. a4 {[%clk 0:02:56.2]} 12...
Re8 {[%clk 0:02:43.7]} 13. Qc2 {[%clk 0:02:52.6]} 13... Bh3 {[%clk 0:02:27.3]}
14. Bh1 {[%clk 0:02:51.9]} 14... Rb8 {[%clk 0:02:25.8]} 15. c5 {[%clk 0:02:38]}
15... Ne6 {[%clk 0:02:07]} 16. Rac1 {[%clk 0:01:44.4]} 16... e4 {[%clk
0:01:25.3]} 17. dxe4 {[%clk 0:01:28.8]} 17... Nxc5 {[%clk 0:01:22.5]} 18. e5
{[%clk 0:01:30.2]} 18... Bf5 {[%clk 0:01:04.2]} 19. e4 {[%clk 0:01:25.5]} 19...
Nfxe4 {[%clk 0:01:03.1]} 20. Nxe4 {[%clk 0:01:25.2]} 20... Nxe4 {[%clk
0:00:59.2]} 21. Qxc7 {[%clk 0:00:51]} 21... Qxc7 {[%clk 0:00:58.6]} 22. Rxc7
{[%clk 0:00:51.5]} 22... dxe5 {[%clk 0:00:55]} 23. g4 {[%clk 0:00:47.4]} 23...
Bxg4 {[%clk 0:00:41.1]} 24. Rxe4 {[%clk 0:00:47.9]} 24... f5 {[%clk 0:00:42.2]}
25. Re1 {[%clk 0:00:39.8]} 25... Rbc8 {[%clk 0:00:38.7]} 26. Rxc8 {[%clk
0:00:36.8]} 26... Rxc8 {[%clk 0:00:39.4]} 27. Bxe5 {[%clk 0:00:35.9]} 27... Bxf3
{[%clk 0:00:30.4]} 28. Bxf3 {[%clk 0:00:36.7]} 28... Re8 {[%clk 0:00:25.5]} 29.
Bc3 {[%clk 0:00:24.9]} 29... Rxe1+ {[%clk 0:00:20.6]} 30. Bxe1 {[%clk
0:00:25.7]} 30... b6 {[%clk 0:00:22.3]} 31. Bb4 {[%clk 0:00:24.2]} 31... Be5
{[%clk 0:00:21]} 32. Bd5+ {[%clk 0:00:21.3]} 32... Kg7 {[%clk 0:00:22.1]} 33. h3
{[%clk 0:00:21.1]} 33... Kf6 {[%clk 0:00:22.9]} 34. Kg2 {[%clk 0:00:18.8]} 34...
g5 {[%clk 0:00:24]} 35. Kf3 {[%clk 0:00:19.7]} 35... h5 {[%clk 0:00:25.3]} 36.
Bc6 {[%clk 0:00:12.8]} 36... g4+ {[%clk 0:00:26.1]} 37. Kg2 {[%clk 0:00:13.9]}
37... Bc7 {[%clk 0:00:21.2]} 38. Bd7 {[%clk 0:00:10.8]} 38... Be5 {[%clk
0:00:20.1]} 39. Bd2 {[%clk 0:00:06.2]} 39... Bc7 {[%clk 0:00:15.7]} 40. h4
{[%clk 0:00:06.3]} 40... f4 {[%clk 0:00:13.1]} 41. Be8 {[%clk 0:00:06.9]} 41...
f3+ {[%clk 0:00:13.8]} 42. Kf1 {[%clk 0:00:05.5]} 42... Kf5 {[%clk 0:00:15]} 43.
Bxh5 {[%clk 0:00:04.7]} 43... Bd8 {[%clk 0:00:16.1]} 44. Bg5 {[%clk 0:00:03.8]}
44... Bxg5 {[%clk 0:00:16.6]} 45. hxg5 {[%clk 0:00:05]} 45... Kxg5 {[%clk
0:00:18.2]} 46. Be8 {[%clk 0:00:05]} 46... Kf4 {[%clk 0:00:19.4]} 47. Bc6 {[%clk
0:00:05.1]} 47... g3 {[%clk 0:00:19.2]} 48. fxg3+ {[%clk 0:00:06]} 48... Kxg3
{[%clk 0:00:20.8]} 49. Bd5 {[%clk 0:00:05.3]} 49... Kf4 {[%clk 0:00:19.3]} 50.
Kf2 {[%clk 0:00:05.7]} 50... Ke5 {[%clk 0:00:20.1]} 51. Bb7 {[%clk 0:00:06.4]}
51... Kd4 {[%clk 0:00:21.2]} 52. Bxf3 {[%clk 0:00:07.3]} 52... Kc3 {[%clk
0:00:22.4]} 53. Ke3 {[%clk 0:00:07.9]} 53... Kb4 {[%clk 0:00:22.2]} 54. Bd1
{[%clk 0:00:08.7]} 54... Ka5 {[%clk 0:00:23.8]} 55. Kd4 {[%clk 0:00:09]} 55...
a6 {[%clk 0:00:25.1]} 56. Be2 {[%clk 0:00:04.4]} 56... axb5 {[%clk 0:00:24.6]}
57. axb5 {[%clk 0:00:05.4]} 57... Kb4 {[%clk 0:00:26.2]} 58. Kd5 {[%clk
0:00:06.4]} 58... Ka5 {[%clk 0:00:25.7]} 59. Kc6 {[%clk 0:00:07.5]} 1-0